fUSD/lending_fUSD_20241004
["ID","MTS","AMOUNT","RATE_DAILY","PERIOD"]
[339839241,1728052357693,-500.0,0.00040821,120]
[339839242,1728052357703,-500.0,0.00040821,120]
[339839243,1728052357713,-638.93,0.00040821,120]
[339839244,1728052357722,-605.12,0.00040821,120]
[339839245,1728052357733,-500.0,0.00040821,120]
[339839246,1728052357742,-500.0,0.00040821,120]
[339839247,1728052357751,-500.0,0.00040821,120]
[339839248,1728052357762,-517.57,0.00040821,120]
[339839249,1728052357771,-251.78562414,0.00040821,120]
[339839250,1728052357781,-500.0,0.00040821,120]
[339839251,1728052357792,-471.64168795,0.00040821,120]
[339839252,1728052357801,-500.0,0.00040821,120]
[339839253,1728052357811,-1187.88,0.00040821,120]
[339839254,1728052357821,-1345.49,0.00040821,120]
[339839255,1728052357830,-500.0,0.00040821,120]
[339839256,1728052357840,-161.08172901,0.00040821,120]
[339839257,1728052357850,-500.0,0.00040821,120]
[339839258,1728052357860,-500.0,0.00040821,120]
[339839259,1728052357870,-500.0,0.00040821,120]
[339839260,1728052357881,-229.47185444,0.00040821,120]
[339839261,1728052357890,-500.0,0.00040821,120]
[339839262,1728052357900,-1287.48,0.00040821,120]
[339839263,1728052357911,-500.0,0.00040821,120]
[339839264,1728052357921,-500.0,0.00040821,120]
[339839265,1728052357931,-622.3,0.00040821,120]
[339839266,1728052357941,-599.91,0.00040821,120]
[339839267,1728052357951,-500.0,0.00040821,120]
[339839268,1728052357961,-150.67777364,0.00040821,120]
[339839269,1728052357971,-916.31,0.00040821,120]
[339839270,1728052357981,-500.0,0.00040821,30]
[339839271,1728052357991,-1282.57,0.00040821,120]
[339839272,1728052358001,-594.74,0.00040821,120]
[339839273,1728052358010,-500.0,0.00040821,120]
[339839274,1728052358020,-500.0,0.00040821,120]
[339839275,1728052358032,-500.0,0.00040821,120]
[339839276,1728052358046,-500.0,0.00040821,120]
[339839277,1728052358055,-614.65,0.00040821,120]
[339839278,1728052358065,-500.0,0.00040821,120]
[339839279,1728052358074,-291.75920539,0.00040821,120]
[339839280,1728052358084,-500.0,0.00040821,120]
[339839281,1728052358093,-500.0,0.00040821,120]
[339839282,1728052358112,-569.04,0.00040821,120]
[339839283,1728052358132,-543.63082912,0.00040821,120]
[339839284,1728052358151,-500.0,0.00040821,120]
[339839285,1728052358170,-500.0,0.00040821,120]
[339839286,1728052358192,-896.69,0.00040821,120]
[339839287,1728052358210,-500.0,0.00040821,120]
[339839288,1728052358229,-1266.27,0.00040821,7]
[339839289,1728052358244,-500.0,0.00040821,120]
[339839290,1728052358262,-500.0,0.00040821,120]
[339839291,1728052358281,-500.0,0.00040821,120]
[339839292,1728052358301,-547.54,0.00040821,120]
[339839293,1728052358316,-948.94,0.00040821,120]
[339839294,1728052358333,-500.0,0.00040821,120]
[339839295,1728052358351,-500.0,0.00040821,120]
[339839296,1728052358369,-500.0,0.00040821,120]
[339839297,1728052358386,-500.0,0.00040821,120]
[339839298,1728052358402,-500.0,0.00040821,120]
[339839299,1728052358418,-500.0,0.00040821,120]
[339839300,1728052358434,-500.0,0.00040821,120]
[339839301,1728052358453,-763.53,0.00040821,120]
[339839302,1728052358467,-1391.13,0.00040821,120]
[339839303,1728052358483,-500.0,0.00040821,120]
[339839304,1728052358498,-500.0,0.00040821,120]
[339839305,1728052358513,-500.0,0.00040821,120]
[339839306,1728052358530,-1983.22,0.00040821,120]
[339839307,1728052358550,-500.0,0.00040821,120]
[339839308,1728052358567,-500.0,0.00040821,120]
[339839309,1728052358582,-906.8,0.00040821,120]
[339839310,1728052358599,-604.79,0.00040821,120]
[339839311,1728052358614,-639.5,0.00040821,120]
[339839312,1728052358629,-500.0,0.00040821,120]
[339839313,1728052358644,-500.0,0.00040821,120]
[339839314,1728052358659,-500.0,0.00040821,120]
[339839315,1728052358675,-542.48,0.00040821,120]
[339839316,1728052358692,-693.45,0.00040821,120]
[339839317,1728052358707,-500.0,0.00040821,120]
[339839318,1728052358723,-500.0,0.00040821,120]
[339839319,1728052358738,-463.93264491,0.00040821,120]
[339839320,1728052358754,-500.0,0.00040821,120]
[339839321,1728052358768,-2885.95,0.00040821,120]
[339839322,1728052358785,-416.93888625,0.00040821,120]
[339839323,1728052358806,-2412.58,0.00040821,120]
[339839324,1728052358820,-581.68,0.00040821,120]
[339839325,1728052358835,-714.4,0.00040821,120]
[339839326,1728052358850,-500.0,0.00040821,120]
[339839327,1728052358866,-527.07,0.00040821,120]
[339839328,1728052358880,-500.0,0.00040821,120]
[339839329,1728052358894,-1396.61,0.00040821,120]
[339839330,1728052358908,-500.0,0.00040821,120]
[339839331,1728052358923,-1592.74,0.00040821,21]
[339839332,1728052358937,-500.0,0.00040821,120]
[339839333,1728052358953,-500.0,0.00040821,120]
[339839334,1728052358968,-500.0,0.00040821,120]
[339839335,1728052358983,-500.0,0.00040821,120]
[339839336,1728052358997,-500.0,0.00040821,120]
[339839337,1728052359011,-923.99,0.00040821,120]
[339839338,1728052359026,-500.0,0.00040821,120]
[339839339,1728052359041,-500.0,0.00040821,120]
[339839340,1728052359059,-1372.86,0.00040821,120]
[339839341,1728052359075,-500.0,0.00040821,120]
[339839342,1728052359090,-1453.68,0.00040821,120]
[339839343,1728052359104,-744.3,0.00040821,120]
[339839344,1728052359118,-1283.59,0.00040821,120]
[339839345,1728052359133,-500.0,0.00040821,120]
[339839346,1728052359147,-500.0,0.00040821,120]
[339839347,1728052359160,-164.84076933,0.00040821,120]
[339839348,1728052359174,-893.06,0.00040821,120]
[339839349,1728052359189,-947.29,0.00040821,120]
[339839350,1728052359204,-500.0,0.00040821,120]
[339839351,1728052359218,-500.0,0.00040821,120]
[339839352,1728052359234,-1424.36,0.00040821,120]
[339839353,1728052359249,-500.0,0.00040821,120]
[339839354,1728052359265,-1090.27,0.00040821,120]
[339839355,1728052359279,-298.25862027,0.00040821,120]
[339839356,1728052359294,-647.57,0.00040821,120]
[339839357,1728052359310,-827.5,0.00040821,120]
[339839358,1728052359324,-500.0,0.00040821,120]
[339839359,1728052359338,-1055.93,0.00040821,120]
[339839360,1728052359353,-500.0,0.00040821,120]
[339839361,1728052359367,-500.0,0.00040821,120]
[339839362,1728052359382,-2611.45,0.00040821,120]
[339839363,1728052359399,-500.0,0.00040821,120]
[339839364,1728052359414,-578.92,0.00040821,120]
[339839365,1728052359429,-500.0,0.00040821,120]
[339839366,1728052359444,-2091.62,0.00040821,120]
[339839367,1728052359461,-500.0,0.00040821,120]
[339839368,1728052359475,-661.05,0.00040821,120]
[339839369,1728052359490,-1075.43,0.00040821,120]
[339839370,1728052359504,-1153.94,0.00040821,120]
[339839371,1728052359520,-500.0,0.00040821,120]
[339839372,1728052359535,-1439.25,0.00040821,120]
[339839373,1728052359551,-500.0,0.00040821,120]
[339839374,1728052359566,-500.0,0.00040821,120]
[339839375,1728052359580,-3944.47,0.00040821,120]
[339839376,1728052359594,-779.04,0.00040821,120]
[339839377,1728052359608,-4476.87,0.00040821,120]
[339839378,1728052359623,-657.6,0.00040821,120]
[339839379,1728052359638,-774.23,0.00040821,120]
[339839380,1728052359652,-576.6,0.00040821,120]
[339839381,1728052359667,-500.0,0.00040821,120]
[339839382,1728052359681,-500.0,0.00040821,120]
[339839383,1728052359697,-670.06,0.00040821,120]
[339839384,1728052359710,-500.0,0.00040821,120]
[339839385,1728052359725,-500.0,0.00040821,120]
[339839386,1728052359739,-4369.58,0.00040821,120]
[339839387,1728052359755,-500.0,0.00040821,120]
[339839388,1728052359769,-1234.77,0.00040821,120]
[339839389,1728052359784,-500.0,0.00040821,120]
[339839390,1728052359805,-7513.51,0.00040821,120]
[339839391,1728052359819,-1456.1,0.00040821,120]
[339839392,1728052359833,-950.52,0.00040821,120]
[339839393,1728052359848,-1323.19,0.00040821,120]
[339839394,1728052359863,-1491.4,0.00040821,120]
[339839395,1728052359877,-511.9,0.00040821,120]
[339839396,1728052359891,-500.0,0.00040821,120]
[339839397,1728052359905,-500.0,0.00040821,120]
[339839398,1728052359920,-500.0,0.00040821,120]
[339839399,1728052359934,-1484.53,0.00040821,120]
[339839400,1728052359948,-939.24,0.00040821,120]
[339839401,1728052359962,-2473.72,0.00040821,120]
[339839402,1728052359976,-500.0,0.00040821,120]
[339839403,1728052359990,-578.69,0.00040821,120]
[339839404,1728052360005,-576.71,0.00040821,120]
[339839405,1728052360020,-782.01,0.00040821,120]
[339839406,1728052360035,-500.0,0.00040821,120]
[339839407,1728052360051,-500.0,0.00040821,120]
[339839408,1728052360066,-500.0,0.00040821,120]
[339839409,1728052360080,-287.74273558,0.00040821,120]
[339839410,1728052360095,-3591.16,0.00040821,120]
[339839411,1728052360110,-500.0,0.00040821,120]
[339839412,1728052360125,-500.0,0.00040821,120]
[339839413,1728052360139,-500.0,0.00040821,120]
[339839414,1728052360153,-3218.69,0.00040821,120]
[339839415,1728052360167,-500.0,0.00040821,120]
[339839416,1728052360182,-970.53,0.00040821,120]
[339839417,1728052360198,-964.0,0.00040821,120]
[339839418,1728052360212,-500.0,0.00040821,120]
[339839419,1728052360225,-623.3,0.00040821,120]
[339839420,1728052360240,-1335.89,0.00040821,120]
[339839421,1728052360254,-770.71,0.00040821,120]
[339839422,1728052360268,-500.0,0.00040821,120]
[339839423,1728052360286,-1460.22,0.00040821,120]
[339839424,1728052360307,-1654.84,0.00040821,120]
[339839425,1728052360323,-4976.51,0.00040821,120]
[339839426,1728052360338,-500.0,0.00040821,120]
[339839427,1728052360353,-932.62,0.00040821,120]
[339839428,1728052360369,-733.59,0.00040821,120]
[339839429,1728052360385,-500.0,0.00040821,120]
[339839430,1728052360402,-250.78,0.00040821,120]
[339839431,1728052360710,-500.0,0.00040821,120]
[339839432,1728052360724,-500.0,0.00040821,120]
[339839433,1728052360734,-1867.11,0.00040821,120]
[339839434,1728052360745,-11036.81,0.00040821,120]
[339839435,1728052360755,-2395.29,0.00040821,120]
[339839436,1728052360766,-500.0,0.00040821,120]
[339839437,1728052360775,-538.86,0.00040821,120]
[339839438,1728052360785,-1321.64,0.00040821,120]
[339839439,1728052360797,-500.0,0.00040821,120]
[339839440,1728052360807,-500.0,0.00040821,120]
[339839441,1728052360818,-1311.12,0.00040821,120]
[339839442,1728052360828,-211.40246742,0.00040821,120]
[339839443,1728052360838,-500.0,0.00040821,120]
[339839444,1728052360848,-686.82,0.00040821,120]
[339839445,1728052360857,-1288.59,0.00040821,120]
[339839446,1728052360867,-500.0,0.00040821,120]
[339839447,1728052360877,-1800.34,0.00040821,120]
[339839448,1728052360886,-500.0,0.00040821,120]
[339839449,1728052360895,-845.07,0.00040821,120]
[339839450,1728052360905,-500.0,0.00040821,120]
[339839451,1728052360915,-276.81196833,0.00040821,120]
[339839452,1728052360924,-1469.35,0.00040821,120]
[339839453,1728052360934,-1052.81,0.00040821,120]
[339839454,1728052360944,-1253.47,0.00040821,120]
[339839455,1728052360954,-6995.81,0.00040821,120]
[339839456,1728052360964,-199.71,0.00040821,120]
[339839457,1728052360974,-500.0,0.00040821,120]
[339839458,1728052360983,-189.74768941,0.00040821,120]
[339839459,1728052360992,-507.47,0.00040821,120]
[339839460,1728052361002,-500.0,0.00040821,120]
[339839461,1728052361011,-500.0,0.00040821,120]
[339839462,1728052361022,-2611.3,0.00040821,120]
[339839463,1728052361032,-500.0,0.00040821,120]
[339839464,1728052361044,-604.27,0.00040821,120]
[339839465,1728052361053,-2230.01,0.00040821,120]
[339839466,1728052361063,-500.0,0.00040821,120]
[339839467,1728052361073,-500.0,0.00040821,120]
[339839468,1728052361082,-646.77,0.00040821,120]
[339839469,1728052361092,-500.0,0.00040821,120]
[339839470,1728052361102,-500.0,0.00040821,120]
[339839471,1728052361112,-500.0,0.00040821,120]
[339839472,1728052361122,-500.0,0.00040821,120]
[339839473,1728052361132,-500.0,0.00040821,120]
[339839474,1728052361142,-514.91,0.00040821,120]
[339839475,1728052361151,-500.0,0.00040821,120]
[339839476,1728052361161,-1404.49,0.00040821,120]
[339839477,1728052361171,-500.0,0.00040821,120]
[339839478,1728052361181,-500.0,0.00040821,120]
[339839479,1728052361190,-500.0,0.00040821,120]
[339839480,1728052361200,-606.88,0.00040821,120]
[339839481,1728052361210,-500.0,0.00040821,120]
[339839482,1728052361220,-500.0,0.00040821,120]
[339839483,1728052361229,-1190.32,0.00040821,120]
[339839484,1728052361239,-1530.35,0.00040821,120]
[339839485,1728052361249,-500.0,0.00040821,120]
[339839486,1728052361259,-500.0,0.00040821,120]
[339839487,1728052361269,-1303.53,0.00040821,120]
[339839488,1728052361279,-500.0,0.00040821,120]
[339839489,1728052361291,-765.62,0.00040821,120]
[339839490,1728052361302,-625.05,0.00040821,120]
[339839491,1728052361316,-500.0,0.00040821,7]
[339839492,1728052361325,-1163.76,0.00040821,120]
[339839493,1728052361334,-459.94808915,0.00040821,120]
[339839494,1728052361344,-2290.51,0.00040821,120]
[339839495,1728052361353,-500.0,0.00040821,120]
[339839496,1728052361363,-649.86,0.00040821,120]
[339839497,1728052361372,-500.0,0.00040821,120]
[339839498,1728052361382,-716.37,0.00040821,120]
[339839499,1728052361392,-500.0,0.00040821,120]
[339839500,1728052361401,-3503.34,0.00040821,120]
[339839501,1728052361411,-435.42986807,0.00040821,120]
[339839502,1728052361420,-500.0,0.00040821,120]
[339839503,1728052361429,-5035.5,0.00040821,120]
[339839504,1728052361439,-1925.44,0.00040821,120]
[339839505,1728052361449,-7070.31,0.00040821,120]
[339839506,1728052361458,-500.0,0.00040821,120]
[339839507,1728052361468,-1047.78,0.00040821,120]
[339839508,1728052361477,-500.0,0.00040821,120]
[339839509,1728052361487,-658.7,0.00040821,120]
[339839510,1728052361496,-500.0,0.00040821,120]
[339839511,1728052361506,-4318.76,0.00040821,120]
[339839512,1728052361516,-1963.01,0.00040821,120]
[339839513,1728052361525,-1732.87,0.00040821,120]
[339839514,1728052361535,-500.0,0.00040821,120]
[339839515,1728052361547,-500.0,0.00040821,120]
[339839516,1728052361556,-500.0,0.00040821,120]
[339839517,1728052361566,-500.0,0.00040821,120]
[339839518,1728052361576,-500.0,0.00040821,120]
[339839519,1728052361585,-820.76,0.00040821,120]
[339839520,1728052361595,-500.0,0.00040821,120]
[339839521,1728052361605,-2184.74,0.00040821,120]
[339839522,1728052361616,-3611.87,0.00040821,120]
[339839523,1728052361625,-825.07,0.00040821,120]
[339839524,1728052361635,-1967.11,0.00040821,120]
[339839525,1728052361645,-1805.1,0.00040821,120]
[339839526,1728052361655,-3035.24,0.00040821,120]
[339839527,1728052361664,-511.74,0.00040821,120]
[339839528,1728052361674,-500.0,0.00040821,120]
[339839529,1728052361684,-500.0,0.00040821,120]
[339839530,1728052361693,-560.83,0.00040821,120]
[339839531,1728052361703,-1582.94,0.00040821,120]
[339839532,1728052361712,-1065.36,0.00040821,120]
[339839533,1728052361722,-5880.09,0.00040821,120]
[339839534,1728052361731,-1564.74,0.00040821,120]
[339839535,1728052361741,-500.0,0.00040821,120]
[339839536,1728052361751,-4434.66,0.00040821,120]
[339839537,1728052361760,-840.82,0.00040821,120]
[339839538,1728052361770,-778.93,0.00040821,120]
[339839539,1728052361780,-1115.42,0.00040821,120]
[339839540,1728052361790,-1167.3,0.00040821,120]
[339839541,1728052361801,-641.17,0.00040821,120]
[339839542,1728052361809,-1034.46,0.00040821,120]
[339839543,1728052361819,-640.61,0.00040821,120]
[339839544,1728052361829,-541.94,0.00040821,120]
[339839545,1728052361840,-500.0,0.00040821,120]
[339839546,1728052361849,-500.0,0.00040821,120]
[339839547,1728052361859,-973.61,0.00040821,120]
[339839548,1728052361869,-1034.57,0.00040821,120]
[339839549,1728052361878,-500.0,0.00040821,120]
[339839550,1728052361888,-500.0,0.00040821,120]
[339839551,1728052361898,-9952.7,0.00040821,120]
[339839552,1728052361907,-2401.59,0.00040821,120]
[339839553,1728052361918,-500.0,0.00040821,120]
[339839554,1728052361927,-500.0,0.00040821,120]
[339839555,1728052361937,-503.06,0.00040821,120]
[339839556,1728052361947,-665.23,0.00040821,120]
[339839557,1728052361957,-1417.36,0.00040821,120]
[339839558,1728052361967,-500.0,0.00040821,120]
[339839559,1728052361977,-1278.94,0.00040821,120]
[339839560,1728052361986,-666.8,0.00040821,120]
[339839561,1728052361995,-500.0,0.00040821,120]
[339839562,1728052362005,-5537.59,0.00040821,120]
[339839563,1728052362015,-1288.99,0.00040821,120]
[339839564,1728052362025,-694.07,0.00040821,120]
[339839565,1728052362035,-1883.94,0.00040821,120]
[339839566,1728052362049,-935.01,0.00040821,120]
[339839567,1728052362059,-1656.57,0.00040821,120]
[339839568,1728052362068,-755.83,0.00040821,120]
[339839569,1728052362078,-500.0,0.00040821,120]
[339839570,1728052362087,-823.41,0.00040821,120]
[339839571,1728052362096,-1664.95,0.0004088,2]
[339839572,1728052362105,-246792.5830595,0.0004088,30]
[339839573,1728052362115,-229000.0,0.000409,30]
[339839574,1728052362124,-208.42849524,0.000409,120]
[339839575,1728052362134,-1264.3879947,0.00040972,2]
[339839576,1728052362144,-2280.6129289,0.00040972,2]
[339839577,1728052362154,-884.4701662,0.00040972,2]
[339839578,1728052362163,-5311.3026684,0.00040972,2]
[339839579,1728052362173,-684.7699014,0.00040972,2]
[339839580,1728052362183,-50000.0,0.00041,31]
[339839581,1728052362192,-50000.0,0.00041,41]
[339839582,1728052362202,-500.0,0.00041,120]
[339839583,1728052362212,-2110.0,0.00041,2]
[339839584,1728052362222,-21931.0,0.00041,120]
[339839585,1728052362231,-1000000.0,0.00041,120]
[339839586,1728052362241,-337852.0,0.00041,60]
[339839587,1728052362250,-36470.78254658,0.00041,40]
[339839588,1728052362259,-177.84061414,0.00041,45]
[339839589,1728052362269,-400.9566093,0.00041,50]
[339839590,1728052362279,-40000.000001,0.00041,30]
[339839591,1728052362288,-14062.25084848,0.00041,2]
[339839592,1728052362300,-950.0,0.00041,2]
[339839593,1728052362312,-7792.71671942,0.00041,120]
[339839594,1728052362322,-1638.25814047,0.00041028,30]
[339839595,1728052362331,-2206.77672807,0.00041028,30]
[339839596,1728052362341,-2575.56839506,0.00041028,30]
[339839597,1728052362352,-233.100417,0.00041048,116]
[339839598,1728052362362,-150.0,0.00041069,120]
[339839599,1728052362372,-155.48182,0.00041095,120]
[339839600,1728052362382,-400.41998824,0.00041095,120]
[339839601,1728052362392,-500.0,0.00041095,120]
[339839602,1728052362401,-500.0,0.00041095,120]
[339839603,1728052362411,-500.0,0.00041095,120]
[339839604,1728052362421,-500.0,0.00041095,120]
[339839605,1728052362431,-500.0,0.00041095,120]
[339839606,1728052362440,-500.0,0.00041095,120]
[339839607,1728052362450,-500.0,0.00041095,120]
[339839608,1728052362460,-262.09602399,0.00041095,120]
[339839609,1728052362470,-1279.35,0.00041095,120]
[339839610,1728052362479,-686.46,0.00041095,120]
[339839611,1728052362489,-500.0,0.00041095,120]
[339839612,1728052362498,-497.85568493,0.00041095,120]
[339839613,1728052362508,-500.0,0.00041095,120]
[339839614,1728052362517,-523.99,0.00041095,120]
[339839615,1728052362526,-500.0,0.00041095,120]
[339839616,1728052362536,-694.3,0.00041095,120]
[339839617,1728052362553,-511.92,0.00041095,120]
[339839618,1728052362563,-500.0,0.00041095,120]
[339839619,1728052362572,-500.0,0.00041095,120]
[339839620,1728052362581,-500.0,0.00041095,120]
[339839621,1728052362591,-500.0,0.00041095,120]
[339839622,1728052362601,-500.0,0.00041095,120]
[339839623,1728052362610,-500.0,0.00041095,120]
[339839624,1728052362620,-500.0,0.00041095,120]
[339839625,1728052362629,-571.19,0.00041095,7]
[339839626,1728052362638,-500.0,0.00041095,120]
[339839627,1728052362648,-500.0,0.00041095,120]
[339839628,1728052362657,-500.0,0.00041095,120]
[339839629,1728052362667,-500.0,0.00041095,120]
[339839630,1728052362676,-626.02,0.00041095,120]
[339839631,1728052362686,-500.0,0.00041095,120]
[339839632,1728052362695,-758.01,0.00041095,120]
[339839633,1728052362705,-500.0,0.00041095,120]
[339839634,1728052362714,-500.0,0.00041095,120]
[339839635,1728052362724,-2079.16,0.00041095,120]
[339839636,1728052362733,-500.0,0.00041095,120]
[339839637,1728052362743,-555.19,0.00041095,120]
[339839638,1728052362753,-571.51,0.00041095,120]
[339839639,1728052362762,-500.0,0.00041095,120]
[339839640,1728052362772,-500.0,0.00041095,120]
[339839641,1728052362781,-500.0,0.00041095,120]
[339839642,1728052362792,-500.0,0.00041095,120]
[339839643,1728052362802,-612.16,0.00041095,120]
[339839644,1728052362811,-1560.63,0.00041095,120]
[339839645,1728052362820,-500.0,0.00041095,120]
[339839646,1728052362830,-500.0,0.00041095,120]
[339839647,1728052362839,-883.27,0.00041095,120]
[339839648,1728052362848,-586.05,0.00041095,120]
[339839649,1728052362861,-575.52266863,0.00041095,120]
[339839650,1728052362870,-623.92,0.00041095,120]
[339839651,1728052362880,-500.0,0.00041095,120]
[339839652,1728052362890,-790.33,0.00041095,120]
[339839653,1728052362899,-500.0,0.00041095,120]
[339839654,1728052362908,-533.77,0.00041095,120]
[339839655,1728052362918,-500.0,0.00041095,120]
[339839656,1728052362927,-500.0,0.00041095,120]
[339839657,1728052362936,-500.0,0.00041095,120]
[339839658,1728052362946,-500.0,0.00041095,120]
[339839659,1728052362956,-741.16,0.00041095,120]
[339839660,1728052362965,-624.43344258,0.00041095,120]
[339839661,1728052362975,-500.0,0.00041095,120]
[339839662,1728052362984,-500.0,0.00041095,120]
[339839663,1728052362992,-805.8,0.00041095,120]
[339839664,1728052363002,-705.12,0.00041095,120]
[339839665,1728052363011,-536.11761342,0.00041095,120]
[339839666,1728052363021,-500.0,0.00041095,120]
[339839667,1728052363030,-500.0,0.00041095,120]
[339839668,1728052363043,-620.12,0.00041095,120]
[339839669,1728052363057,-680.56,0.00041095,120]
[339839670,1728052363067,-209.69826392,0.00041095,120]
[339839671,1728052363076,-745.23,0.00041095,120]
[339839672,1728052363086,-549.13964601,0.00041095,120]
[339839673,1728052363095,-500.0,0.00041095,120]
[339839674,1728052363105,-648.92,0.00041095,120]
[339839675,1728052363115,-500.0,0.00041095,120]
[339839676,1728052363124,-650.29,0.00041095,120]
[339839677,1728052363133,-500.0,0.00041095,120]
[339839678,1728052363143,-500.0,0.00041095,120]
[339839679,1728052363153,-500.0,0.00041095,120]
[339839680,1728052363162,-156.89710371,0.00041095,120]
[339839681,1728052363172,-500.0,0.00041095,120]
[339839682,1728052363181,-500.0,0.00041095,120]
[339839683,1728052363191,-500.0,0.00041095,120]
[339839684,1728052363200,-500.0,0.00041095,120]
[339839685,1728052363210,-1059.57,0.00041095,120]
[339839686,1728052363219,-456.8597175,0.00041095,120]
[339839687,1728052363229,-500.0,0.00041095,120]
[339839688,1728052363239,-500.0,0.00041095,120]
[339839689,1728052363250,-500.0,0.00041095,120]
[339839690,1728052363259,-1103.96,0.00041095,120]
[339839691,1728052363269,-500.0,0.00041095,120]
[339839692,1728052363279,-649.65,0.00041095,120]
[339839693,1728052363288,-313.03125158,0.00041095,120]
[339839694,1728052363301,-500.0,0.00041095,120]
[339839695,1728052363314,-500.0,0.00041095,120]
[339839696,1728052363325,-500.0,0.00041095,120]
[339839697,1728052363335,-500.0,0.00041095,120]
[339839698,1728052363344,-637.67,0.00041095,120]
[339839699,1728052363353,-500.0,0.00041095,120]
[339839700,1728052363362,-200.0,0.00041095,7]
[339839701,1728052363372,-500.0,0.00041095,120]
[339839702,1728052363381,-500.0,0.00041095,120]
[339839703,1728052363391,-500.0,0.00041095,120]
[339839704,1728052363401,-500.0,0.00041095,120]
[339839705,1728052363411,-1085.42,0.00041095,120]
[339839706,1728052363420,-500.0,0.00041095,120]
[339839707,1728052363430,-500.0,0.00041095,120]
[339839708,1728052363439,-500.0,0.00041095,120]
[339839709,1728052363449,-500.0,0.00041095,120]
[339839710,1728052363460,-743.04,0.00041095,120]
[339839711,1728052363469,-500.0,0.00041095,120]
[339839712,1728052363479,-500.0,0.00041095,120]
[339839713,1728052363489,-496.14234875,0.00041095,120]
[339839714,1728052363499,-500.0,0.00041095,120]
[339839715,1728052363510,-880.08,0.00041095,120]
[339839716,1728052363520,-500.0,0.00041095,120]
[339839717,1728052363530,-511.66,0.00041095,120]
[339839718,1728052363542,-525.38,0.00041095,120]
[339839719,1728052363552,-500.0,0.00041095,120]
[339839720,1728052363562,-500.0,0.00041095,120]
[339839721,1728052363571,-500.0,0.00041095,120]
[339839722,1728052363581,-578.74,0.00041095,120]
[339839723,1728052363590,-888.8,0.00041095,120]
[339839724,1728052363599,-500.0,0.00041095,120]
[339839725,1728052363609,-500.0,0.00041095,120]
[339839726,1728052363619,-782.81,0.00041095,120]
[339839727,1728052363629,-627.53,0.00041095,120]
[339839728,1728052363638,-500.0,0.00041095,120]
[339839729,1728052363648,-942.19,0.00041095,120]
[339839730,1728052363657,-612.72,0.00041095,120]
[339839731,1728052363667,-500.0,0.00041095,120]
[339839732,1728052363678,-500.0,0.00041095,120]
[339839733,1728052363687,-500.0,0.00041095,120]
[339839734,1728052363698,-553.18,0.00041095,120]
[339839735,1728052363708,-500.0,0.00041095,120]
[339839736,1728052363718,-898.91,0.00041095,120]
[339839737,1728052363728,-1053.16,0.00041095,120]
[339839738,1728052363738,-574.04,0.00041095,120]
[339839739,1728052363748,-500.0,0.00041095,120]
[339839740,1728052363758,-810.52,0.00041095,120]